bitfinex/quotes_SOLUSD_20250726
["timestamp","ask_amount","ask_price","bid_price","bid_amount"]
[1753542724329,37.38,186.86,186.82,4.91218042]
[1753542724530,0.71,186.85,186.82,4.91218042]
[1753542724916,0.71,186.85,186.81,5.35279574]
[1753542725113,0.71,186.85,186.81,6.05279574]
[1753542725317,0.71,186.85,186.82,4.91218042]
[1753542726832,0.71,186.85,186.81,5.35280823]
[1753542727126,0.71,186.85,186.82,5.61218042]
[1753542727328,4.91218042,186.84,186.78,6.48318042]
[1753542727528,38.09,186.83,186.78,6.48318042]
[1753542727825,38.09,186.83,186.79,5.61218042]
[1753542728803,37.38,186.83,186.8,0.7]
[1753542729008,0.71,186.82,186.76,0.06]
[1753542729209,0.71,186.82,186.76,5.67218042]
[1753542729409,4.91218042,186.81,186.76,0.06]
[1753542729626,43.00218042,186.8,186.76,0.06]
[1753542730041,0.71,186.79,186.76,0.06]
[1753542730329,38.09,186.8,186.76,0.06]
[1753542730532,38.09,186.8,186.76,0.76]
[1753542731729,38.09,186.8,186.76,6.11426978]
[1753542732037,38.09,186.8,186.77,0.7]
[1753542732620,38.09,186.8,186.76,10.3264502]
[1753542732836,38.09,186.8,186.76,11.0264502]
[1753542734633,37.38,186.8,186.76,0.06]
[1753542734822,38.09,186.81,186.77,0.7]
[1753542735025,0.71,186.8,186.77,0.7]
[1753542735235,0.71,186.8,186.76,0.06]
[1753542735530,0.71,186.8,186.76,4.97218042]
[1753542735839,0.71,186.8,186.76,11.02659504]
[1753542736630,37.38,186.81,186.76,5.41441462]
[1753542736943,0.71,186.79,186.76,0.06]
[1753542740122,0.71,186.79,186.76,10.32662536]
[1753542740337,37.38,186.81,186.77,5.61218042]
[1753542740537,37.38,186.81,186.77,4.91218042]
[1753542740735,0.71,186.8,186.76,5.41444494]
[1753542741053,0.71,186.79,186.76,0.06]
[1753542741637,0.71,186.78,186.76,0.06]
[1753542743154,0.71,186.78,186.76,4.97218042]
[1753542744248,0.71,186.78,186.76,0.06]
[1753542748434,0.68,186.78,186.76,0.06]
[1753542749248,0.68,186.77,186.76,0.06]
[1753542750754,0.68,186.78,186.76,0.06]
[1753542751333,0.68,186.77,186.76,0.06]
[1753542752266,60.1988629,186.77,186.76,0.06]
[1753542752454,65.11104332,186.77,186.76,0.06]
[1753542754340,65.11104332,186.77,186.74,0.2]
[1753542754341,63.77911318,186.77,186.74,0.2]
[1753542754651,16.78468397,186.74,186.71,0.06]
[1753542754839,49.20786439,186.72,186.71,0.06]
[1753542755345,49.88786439,186.72,186.71,0.06]
[1753542755543,55.24347707,186.72,186.71,0.06]
[1753542755743,50.33129665,186.72,186.71,0.06]
[1753542755975,55.24347707,186.72,186.71,0.06]
[1753542756144,48.37686439,186.72,186.71,0.06]
[1753542756467,43.46468397,186.72,186.71,0.06]
[1753542756772,39.04,186.74,186.71,4.97218042]
[1753542756942,39.04,186.74,186.71,5.64218042]
[1753542757278,0.68,186.73,186.71,0.06]
[1753542757634,0.68,186.75,186.71,0.06]
[1753542757840,55.82468397,186.77,186.73,4.91218042]
[1753542758546,55.82468397,186.77,186.72,0.67]
[1753542758963,55.14468397,186.77,186.73,4.91218042]
[1753542759153,0.68,186.76,186.72,4.91218042]
[1753542759963,0.68,186.75,186.72,4.91218042]
[1753542760468,0.68,186.75,186.71,0.06]
[1753542760651,0.68,186.75,186.73,0.06]
[1753542761147,60.4988797,186.77,186.73,0.06]
[1753542761347,0.68,186.74,186.73,0.06]
[1753542762073,0.68,186.76,186.73,0.06]
[1753542762445,0.68,186.75,186.73,0.06]
[1753542764170,0.68,186.74,186.73,0.06]
[1753542766174,22.37686439,186.74,186.73,0.06]
[1753542766548,60.77686439,186.74,186.73,0.06]
[1753542766957,66.13190348,186.74,186.73,0.06]
[1753542767357,74.02510031,186.74,186.73,0.06]
[1753542767882,74.02510031,186.74,186.71,0.06]
[1753542767883,47.69686439,186.72,186.71,0.06]
[1753542768063,51.26135863,186.72,186.71,1e-08]
[1753542768253,51.94135863,186.72,186.71,1e-08]
[1753542768454,56.85353905,186.72,186.71,1e-08]
[1753542768655,51.94135863,186.72,186.71,1e-08]
[1753542768867,90.36135863,186.72,186.71,1e-08]
[1753542769057,95.27353905,186.72,186.71,1e-08]
[1753542769261,95.27353905,186.72,186.69,0.06]
[1753542769262,16.78468397,186.71,186.69,0.06]
[1753542769576,65.02904481,186.7,186.69,0.06]
[1753542769782,74.62972544,186.7,186.69,0.06]
[1753542772365,71.0652312,186.7,186.69,0.06]
[1753542773185,74.61981921,186.7,186.69,0.06]
[1753542774366,71.0652312,186.7,186.69,0.06]
[1753542774900,83.82730579,186.7,186.69,0.06]
[1753542775065,87.38076579,186.7,186.69,0.06]
[1753542775455,87.37962997,186.7,186.69,0.06]
[1753542775661,16.78468397,186.69,186.68,0.06]
[1753542775891,25.96897806,186.69,186.68,0.06]
[1753542776258,60.87686439,186.69,186.68,0.06]
[1753542776488,73.43155852,186.69,186.68,0.06]
[1753542776687,187.92803181,186.69,186.68,0.06]
[1753542776871,225.66803181,186.69,186.68,0.06]
[1753542777201,251.66803181,186.69,186.68,0.06]
[1753542777499,225.66803181,186.69,186.68,0.06]
[1753542777865,251.66803181,186.69,186.68,0.06]
[1753542778078,252.38803181,186.69,186.68,0.06]
[1753542778486,251.66803181,186.69,186.68,0.06]
[1753542779085,252.38803181,186.69,186.68,0.06]
[1753542780387,247.47585139,186.69,186.68,0.06]
[1753542780590,246.75585139,186.69,186.68,0.06]
[1753542780887,251.66803181,186.69,186.68,0.06]
[1753542782288,247.47585139,186.69,186.68,0.06]
[1753542782592,251.66803181,186.69,186.68,0.06]
[1753542782971,251.66803181,186.69,186.68,0.78]
[1753542783163,203.52687455,186.69,186.68,0.78]
[1753542783367,160.15469413,186.69,186.68,5.69218042]
[1753542784490,160.15469413,186.69,186.68,0.78]
[1753542784690,12.55469413,186.69,186.68,5.69218042]
[1753542784869,12.55469413,186.69,186.68,11.04894065]
[1753542792626,12.55469413,186.69,186.68,6.13676023]
[1753542792783,12.55469413,186.69,186.68,11.04894065]
[1753542797702,0.03,186.74,186.68,56.56794122]
[1753542797905,0.03,186.74,186.73,4.91218042]
[1753542798093,0.03,186.74,186.73,10.26750629]
[1753542800303,0.03,186.74,186.73,10.98750629]
[1753542802107,0.03,186.74,186.73,5.35532587]
[1753542802306,0.03,186.74,186.73,10.26750629]
[1753542803002,0.03,186.74,186.73,10.98750629]
[1753542804393,0.03,186.74,186.72,5.35557593]
[1753542804394,0.74,186.74,186.72,5.35557593]
[1753542804713,0.03,186.74,186.73,4.91218042]
[1753542805221,0.03,186.74,186.73,5.58218042]
[1753542806510,0.03,186.74,186.73,10.93750629]
[1753542808991,0.03,186.74,186.73,6.02532587]
[1753542809192,0.03,186.74,186.73,10.26750629]
[1753542809900,0.74,186.74,186.7,38.32]
[1753542810114,0.74,186.74,186.68,0.06]
[1753542810115,5.65218042,186.74,186.68,0.06]
[1753542810309,5.62218042,186.73,186.68,0.06]
[1753542810711,0.71,186.72,186.68,0.06]
[1753542813310,10.97784658,186.72,186.68,0.06]
[1753542813619,5.62218042,186.71,186.68,0.06]
[1753542814001,0.71,186.7,186.68,0.06]
[1753542815910,5.62218042,186.7,186.68,0.06]
[1753542816413,0.71,186.69,186.68,0.06]
[1753542817808,10.97865371,186.69,186.68,0.06]
[1753542820518,0.71,186.69,186.68,0.06]
[1753542821722,0.71,186.71,186.68,0.06]
[1753542822417,0.71,186.7,186.68,0.06]
[1753542823649,10.26789492,186.72,186.68,0.06]
[1753542823850,0.71,186.7,186.68,0.06]
[1753542824559,0.71,186.69,186.68,0.06]
[1753542824727,4.91218042,186.72,186.68,0.06]
[1753542824937,0.71,186.71,186.68,0.06]
[1753542825632,0.71,186.7,186.68,0.06]
[1753542826945,0.71,186.69,186.68,0.06]
[1753542827661,0.71,186.71,186.68,0.06]
[1753542827837,0.71,186.7,186.68,0.06]
[1753542829673,0.71,186.69,186.68,0.06]
[1753542831550,91.90333768,186.69,186.68,0.06]
[1753542834364,98.18583768,186.69,186.68,0.06]
[1753542834548,103.38308568,186.69,186.68,0.06]
[1753542835467,93.50383768,186.69,186.68,0.06]
[1753542836356,91.88333768,186.69,186.68,0.06]
[1753542837243,86.97115726,186.69,186.68,0.06]
[1753542837444,91.88333768,186.69,186.68,0.06]
[1753542840753,81.61468397,186.69,186.68,0.06]
[1753542840959,86.26115726,186.69,186.68,0.06]
[1753542841170,91.85333768,186.69,186.68,0.06]
[1753542845262,95.42672381,186.69,186.68,0.06]
[1753542845461,95.42608537,186.69,186.68,0.06]
[1753542847678,16.78468397,186.68,186.67,0.06]
[1753542847858,25.94961208,186.68,186.67,0.06]
[1753542848871,42.78468397,186.65,186.64,0.06]
[1753542849076,85.75686439,186.65,186.64,0.06]
[1753542849577,86.43686439,186.65,186.64,0.06]
[1753542849776,81.52468397,186.65,186.64,0.06]
[1753542849957,86.43686439,186.65,186.64,0.06]
[1753542850771,91.7944856,186.65,186.64,0.06]
[1753542851289,26.0,186.61,186.49,0.71]
[1753542851453,4.91218042,186.56,186.52,0.71]
[1753542851658,42.78468397,186.57,186.52,0.71]
[1753542851659,38.04,186.55,186.52,5.62218042]
[1753542851870,38.04,186.55,186.53,0.71]
[1753542852377,38.04,186.55,186.54,0.71]
[1753542852966,38.04,186.55,186.51,4.91218042]
[1753542853162,38.04,186.55,186.49,5.36210327]
[1753542853487,38.04,186.55,186.52,0.71]
[1753542853853,38.02,186.54,186.52,5.62218042]
[1753542854062,38.02,186.54,186.53,0.71]
[1753542854261,38.02,186.54,186.5,4.91218042]
[1753542854456,38.02,186.54,186.51,0.71]
[1753542855080,38.02,186.54,186.52,0.71]
[1753542855581,5.59218042,186.57,186.53,0.71]
[1753542855770,38.02,186.56,186.53,0.71]
[1753542856283,4.91218042,186.54,186.5,0.71]
[1753542856582,38.02,186.53,186.5,0.71]
[1753542857484,38.02,186.53,186.51,0.71]
[1753542858177,38.02,186.53,186.52,0.71]
[1753542858678,38.02,186.53,186.5,0.71]
[1753542859255,38.02,186.53,186.51,0.71]
[1753542859472,38.02,186.53,186.48,1.5648]
[1753542859473,38.02,186.53,186.48,11.83943623]
[1753542859685,38.02,186.53,186.49,5.62218042]
[1753542859866,38.02,186.53,186.5,0.71]
[1753542860065,38.02,186.53,186.49,4.91218042]
[1753542860387,38.02,186.53,186.5,0.71]
[1753542861085,38.7,186.53,186.48,12.54941373]
[1753542861273,38.7,186.53,186.49,0.71]
[1753542861788,4.91218042,186.52,186.49,0.71]
[1753542861971,37.98,186.51,186.49,0.71]
[1753542862372,4.91218042,186.52,186.49,0.71]
[1753542862571,37.98,186.51,186.49,0.71]
[1753542863483,37.98,186.51,186.5,0.71]
[1753542864269,37.96,186.51,186.5,6.07193029]
[1753542868396,37.96,186.51,186.49,5.36221781]
[1753542868702,37.96,186.51,186.5,0.71]
[1753542869206,37.96,186.51,186.49,10.27439823]
[1753542869359,37.96,186.51,186.49,10.98439823]
[1753542869769,37.96,186.51,186.5,0.06]
[1753542869977,37.94,186.53,186.5,0.77]
[1753542870376,37.94,186.53,186.5,6.13185391]
[1753542872098,38.66,186.53,186.5,6.13185391]
[1753542872588,38.66,186.53,186.5,0.06]
[1753542873490,4.91218042,186.51,186.5,0.06]
[1753542873789,47.69686439,186.51,186.5,0.06]
[1753542873969,48.41686439,186.51,186.5,0.06]
[1753542874578,0.72,186.53,186.5,0.06]
[1753542874798,38.18,186.52,186.5,0.06]
[1753542875178,43.09218042,186.52,186.5,0.06]
[1753542875488,0.72,186.51,186.5,0.06]
[1753542876075,43.09218042,186.52,186.5,0.06]
[1753542876578,43.81218042,186.52,186.5,0.06]
[1753542876890,0.72,186.51,186.5,0.06]
[1753542879576,38.18,186.52,186.5,0.06]
[1753542879976,0.72,186.53,186.5,0.06]
[1753542880209,38.16,186.52,186.5,0.06]
[1753542880578,38.88,186.52,186.5,0.06]
[1753542881093,174.32,186.55,186.5,0.77]
[1753542881300,38.14,186.54,186.5,5.68218042]
[1753542881887,148.32,186.55,186.5,5.68218042]
[1753542882084,38.14,186.54,186.5,5.68218042]
[1753542882388,38.14,186.53,186.51,6.0716428]
[1753542882593,38.14,186.53,186.51,10.98382322]
[1753542883389,38.14,186.53,186.51,6.0716428]
[1753542883589,38.14,186.53,186.51,10.98382322]
[1753542883799,38.14,186.53,186.51,10.27382322]
[1753542883997,38.14,186.53,186.51,5.3616428]
[1753542884172,38.14,186.53,186.51,10.27382322]
[1753542884378,38.14,186.53,186.51,4.91218042]
[1753542884575,38.86,186.53,186.52,4.91218042]
[1753542884781,38.14,186.53,186.51,10.27368891]
[1753542885195,38.14,186.53,186.5,10.33401521]
[1753542885400,38.86,186.53,186.5,10.33401521]
[1753542885680,0.72,186.52,186.5,10.33401521]
[1753542886713,38.14,186.53,186.5,10.33401521]
[1753542886884,38.86,186.53,186.5,10.33401521]
[1753542887783,0.72,186.52,186.5,10.33401521]
[1753542888084,38.82,186.52,186.5,10.33401521]
[1753542890306,38.1,186.52,186.51,5.62218042]
[1753542890709,0.72,186.55,186.51,5.62218042]
[1753542890882,5.63218042,186.62,186.54,4.91218042]
[1753542891085,38.08,186.59,186.56,4.91218042]
[1753542891610,38.08,186.59,186.56,5.62218042]
[1753542891983,38.8,186.59,186.56,4.91218042]
[1753542892183,38.8,186.59,186.56,10.27223522]
[1753542892502,38.08,186.58,186.57,4.91218042]
[1753542892707,0.72,186.61,186.57,4.91218042]
[1753542892905,38.08,186.6,186.58,4.91218042]
[1753542893688,38.8,186.6,186.58,4.91218042]
[1753542893906,38.8,186.6,186.57,10.27196823]
[1753542894111,38.8,186.6,186.57,5.35978781]
[1753542894313,4.91218042,186.58,186.49,27.6243]
[1753542894513,4.91218042,186.56,186.49,2.3243]
[1753542894692,5.58218042,186.55,186.5,0.06]
[1753542895018,38.08,186.54,186.5,5.42188394]
[1753542895201,0.67,186.53,186.5,0.06]
[1753542895511,0.67,186.52,186.5,0.06]
[1753542895994,4.91218042,186.53,186.5,0.06]
[1753542896189,0.67,186.51,186.5,0.06]
[1753542896395,38.73,186.51,186.5,0.06]
[1753542897520,43.64218042,186.51,186.5,0.06]
[1753542898216,42.97218042,186.51,186.5,0.06]
[1753542898520,43.64218042,186.51,186.5,0.06]
[1753542899191,38.73,186.51,186.5,0.06]
[1753542899397,38.06,186.51,186.5,0.06]
[1753542900010,38.73,186.51,186.5,0.06]
[1753542902503,4.91218042,186.53,186.5,0.06]
[1753542902708,38.02,186.52,186.5,0.76]
[1753542902910,38.02,186.52,186.5,0.06]
[1753542903399,38.0,186.51,186.5,0.06]
[1753542904721,38.0,186.51,186.5,0.76]
[1753542904920,38.0,186.51,186.5,0.06]
[1753542905126,38.67,186.51,186.5,0.06]
[1753542906105,48.94382322,186.51,186.5,0.06]
[1753542907714,38.67,186.51,186.5,0.06]
[1753542907919,48.94382322,186.51,186.5,0.06]
[1753542909909,38.67,186.51,186.5,0.06]
[1753542910323,38.0,186.51,186.5,0.06]
[1753542910928,4.91218042,186.54,186.5,0.06]
[1753542911113,37.96,186.53,186.5,0.76]
[1753542911313,37.96,186.52,186.5,0.76]
[1753542911809,37.96,186.52,186.5,0.06]
[1753542913027,0.67,186.51,186.5,0.06]
[1753542914602,37.94,186.51,186.5,0.06]
[1753542915324,5.58218042,186.57,186.5,5.67218042]
[1753542915512,0.67,186.6,186.56,4.91218042]
[1753542915834,38.59,186.59,186.55,4.91218042]
[1753542916029,38.59,186.59,186.56,4.91218042]
[1753542916527,37.92,186.59,186.57,4.91218042]
[1753542917238,0.67,186.63,186.58,5.61218042]
[1753542917526,37.93,186.64,186.62,4.91218042]
[1753542917708,37.93,186.64,186.63,4.91218042]
[1753542917918,37.93,186.64,186.62,5.61218042]
[1753542918114,37.93,186.64,186.62,4.91218042]
[1753542919107,0.03,186.64,186.63,5.61218042]
[1753542919712,0.03,186.64,186.63,4.91218042]
[1753542920625,0.03,186.64,186.62,4.91218042]
[1753542920834,0.03,186.64,186.63,4.91218042]
[1753542921916,0.03,186.64,186.62,4.91218042]
[1753542922115,0.03,186.64,186.62,5.61218042]
[1753542922315,0.03,186.64,186.6,0.7]
[1753542922611,0.03,186.64,186.62,4.91218042]
[1753542923020,0.03,186.64,186.63,4.91218042]
[1753542924814,0.69,186.64,186.59,0.71]
[1753542925009,0.69,186.64,186.59,4.91218042]
[1753542925312,4.91218042,186.62,186.56,4.91218042]
[1753542925516,43.43218042,186.61,186.55,10.27249697]
[1753542925716,0.66,186.6,186.55,10.27249697]
[1753542925926,0.66,186.6,186.55,10.98249697]
[1753542926526,0.66,186.59,186.53,5.36103831]
[1753542926725,0.66,186.59,186.55,0.71]
[1753542927134,5.57218042,186.59,186.55,0.71]
[1753542927642,5.57218042,186.59,186.53,10.98321873]
[1753542928940,5.57218042,186.59,186.53,6.07103831]
[1753542929145,5.57218042,186.59,186.53,10.98321873]
[1753542930451,5.57218042,186.59,186.54,10.27283758]
[1753542930623,4.91218042,186.59,186.55,0.71]
[1753542930943,4.91218042,186.6,186.55,0.71]
[1753542931311,5.57218042,186.6,186.55,0.71]
[1753542931525,0.66,186.6,186.55,0.71]
[1753542931724,5.57218042,186.6,186.55,0.71]
[1753542932953,4.91218042,186.6,186.55,0.71]
[1753542933159,38.48,186.59,186.55,0.71]
[1753542935340,38.48,186.59,186.54,10.98294746]
[1753542935658,5.57218042,186.58,186.52,10.33326794]
[1753542935834,0.66,186.57,186.52,10.33326794]
[1753542936035,0.66,186.56,186.52,11.04326794]
[1753542936558,10.93181186,186.58,186.53,0.71]
[1753542936745,0.66,186.57,186.53,5.62218042]
[1753542936946,0.66,186.57,186.53,0.71]
[1753542937261,37.78,186.57,186.53,5.62218042]
[1753542937460,38.44,186.57,186.53,5.62218042]
[1753542937660,38.44,186.57,186.55,0.06]
[1753542937851,37.78,186.57,186.55,0.06]
[1753542938660,0.66,186.59,186.55,0.06]
[1753542938833,38.44,186.58,186.55,0.06]
[1753542940160,0.66,186.57,186.55,0.06]
[1753542940938,42.69218042,186.58,186.55,0.06]
[1753542941142,0.66,186.56,186.55,0.06]
[1753542941337,5.57218042,186.56,186.55,0.06]
[1753542941549,0.66,186.56,186.55,0.06]
[1753542941769,5.57218042,186.56,186.55,0.06]
[1753542941951,0.66,186.56,186.55,0.06]
[1753542942865,10.93238625,186.56,186.55,0.06]
[1753542943439,48.71238625,186.56,186.55,0.06]
[1753542944343,0.66,186.59,186.55,0.06]
[1753542944677,37.78,186.58,186.55,5.68218042]
[1753542944965,4.91218042,186.56,186.55,0.06]
[1753542945361,5.57218042,186.56,186.55,0.06]
[1753542945563,22.35686439,186.56,186.55,0.06]
[1753542945754,16.78468397,186.55,186.52,0.06]
[1753542945955,4.91218042,186.53,186.52,0.06]
[1753542946339,10.93324834,186.53,186.52,0.06]
[1753542948855,5.57218042,186.53,186.52,0.06]
[1753542951264,4.91218042,186.55,186.52,0.06]
[1753542951439,37.76,186.54,186.52,0.77]
[1753542951844,37.76,186.54,186.52,0.06]
[1753542952263,5.57218042,186.56,186.52,0.06]
[1753542952460,38.44,186.55,186.52,0.06]
[1753542952762,0.66,186.55,186.52,0.06]
[1753542952959,37.78,186.54,186.52,0.06]
[1753542955168,43.41218042,186.54,186.52,0.06]
[1753542955574,37.78,186.54,186.52,0.06]
[1753542955763,5.63218042,186.53,186.52,0.06]
[1753542958181,4.91218042,186.53,186.52,0.06]
[1753542958479,42.69218042,186.54,186.52,0.06]
[1753542958953,43.41218042,186.54,186.52,0.06]
[1753542961678,0.72,186.53,186.52,0.06]
[1753542961876,5.63218042,186.53,186.52,0.06]
[1753542962359,0.72,186.53,186.52,0.06]
[1753542962559,43.39218042,186.53,186.52,0.06]
[1753542963677,65.53793231,186.53,186.52,0.06]
[1753542964486,0.03,186.55,186.52,0.74]
[1753542964656,37.83,186.55,186.52,0.74]
[1753542964855,0.72,186.54,186.52,0.06]
[1753542965080,37.82,186.53,186.52,0.06]
[1753542965655,38.54,186.53,186.52,0.06]
[1753542966579,37.82,186.53,186.52,0.06]
[1753542966883,38.54,186.53,186.52,0.06]
[1753542967457,37.82,186.53,186.52,0.06]
[1753542967785,38.54,186.53,186.52,0.06]
[1753542967983,37.82,186.53,186.52,0.06]
[1753542968277,38.54,186.53,186.52,0.06]
[1753542968483,37.82,186.53,186.52,0.06]
[1753542968783,37.88,186.53,186.52,0.06]
[1753542969096,37.88,186.53,186.52,0.74]
[1753542969286,37.98,186.54,186.52,0.74]
[1753542969486,0.03,186.55,186.52,0.74]
[1753542969789,38.01,186.55,186.53,0.68]
[1753542970205,38.01,186.55,186.52,0.06]
[1753542970514,5.63218042,186.54,186.52,0.06]
[1753542970876,0.72,186.54,186.52,0.06]
[1753542971376,48.28273387,186.55,186.52,0.06]
[1753542971377,43.63218042,186.53,186.52,0.06]
[1753542971579,91.77793231,186.53,186.52,0.06]
[1753542971898,16.78468397,186.52,186.51,0.06]
[1753542972069,21.69686439,186.52,186.51,0.06]
[1753542972267,22.41686439,186.52,186.51,0.06]
[1753542972511,17.50468397,186.52,186.51,0.06]
[1753542972706,43.50468397,186.52,186.51,0.06]
[1753542972989,48.41686439,186.52,186.51,0.06]
[1753542973216,67.22914481,186.52,186.51,1e-08]
[1753542973366,44.18170738,186.52,186.5,0.06]
[1753542973574,27.77850719,186.51,186.5,0.06]
[1753542973763,66.13850719,186.51,186.5,0.06]
[1753542973976,69.69983234,186.51,186.5,0.06]
[1753542974173,64.78765192,186.51,186.5,0.06]
[1753542974375,0.72,186.51,186.5,0.06]
[1753542974575,38.5,186.51,186.5,0.06]
[1753542975393,44.15218042,186.51,186.5,0.06]
[1753542975783,49.51382322,186.51,186.5,0.06]
[1753542977298,44.6016428,186.51,186.5,0.06]
[1753542977499,92.29850719,186.51,186.5,0.06]
[1753542977995,48.86632677,186.51,186.5,0.06]
[1753542978207,92.29850719,186.51,186.5,0.06]
[1753542982008,5.36221781,186.49,186.48,0.06]
[1753542982216,65.5790822,186.49,186.48,0.06]
[1753542982379,26.0,186.45,186.37,0.68]
[1753542982579,4.91218042,186.39,186.37,0.68]
[1753542982885,43.45218042,186.39,186.37,0.68]
[1753542983104,43.45218042,186.39,186.34,1.5557]
[1753542983304,43.45218042,186.39,186.35,0.68]
[1753542983508,43.45218042,186.39,186.34,1.5557]
[1753542983509,4.91218042,186.38,186.36,0.68]
[1753542983706,4.91218042,186.4,186.37,0.68]
[1753542983906,4.91218042,186.4,186.34,11.8344051]
[1753542983907,38.54,186.39,186.38,0.68]
[1753542984211,38.52,186.4,186.38,0.68]
[1753542984583,43.43218042,186.4,186.36,0.71]
[1753542984978,43.47468397,186.43,186.37,0.71]
[1753542985174,4.91218042,186.39,186.34,1.5557]
[1753542985399,38.52,186.39,186.35,0.71]
[1753542985602,38.52,186.39,186.34,6.46788042]
[1753542985808,38.52,186.39,186.36,0.71]
[1753542986191,44.12218042,186.39,186.34,0.71]
[1753542986495,43.43218042,186.39,186.35,0.71]
[1753542986704,43.43218042,186.39,186.36,0.71]
[1753542986883,38.52,186.39,186.36,0.71]
[1753542987080,43.43218042,186.39,186.33,16.83065205]
[1753542987281,38.52,186.39,186.34,5.62218042]
[1753542987498,38.52,186.39,186.34,0.71]
[1753542987705,43.43218042,186.39,186.34,0.71]
[1753542987917,43.43218042,186.39,186.33,11.91847163]
[1753542987918,0.69,186.38,186.33,11.91847163]
[1753542988079,38.48,186.37,186.35,5.36624631]
[1753542988284,38.48,186.38,186.36,0.71]
[1753542988504,4.91218042,186.42,186.37,4.91218042]
[1753542988710,38.48,186.41,186.38,0.71]
[1753542988913,43.39218042,186.42,186.35,5.36624631]
[1753542989113,43.39218042,186.42,186.36,5.62218042]
[1753542989988,43.39218042,186.42,186.36,10.98811473]
[1753542990719,43.39218042,186.42,186.36,10.27811473]
[1753542990885,43.39218042,186.42,186.37,0.71]
[1753542991215,38.48,186.42,186.37,10.98783573]
[1753542991402,38.48,186.42,186.37,10.27783573]
[1753542991717,38.48,186.42,186.38,0.71]
[1753542992100,38.48,186.42,186.39,0.71]
[1753542992710,38.48,186.42,186.37,6.07565531]
[1753542992711,39.17,186.42,186.37,6.07565531]
[1753542993011,39.17,186.42,186.38,0.71]
[1753542993614,0.69,186.48,186.41,4.91218042]
[1753542993913,38.46,186.47,186.43,4.91218042]
[1753542994217,39.15,186.47,186.43,4.91218042]
[1753542994405,0.69,186.46,186.43,4.91218042]
[1753542994590,0.69,186.46,186.42,0.71]
[1753542994913,38.46,186.47,186.43,4.91218042]
[1753542995096,39.15,186.47,186.43,4.91218042]
[1753542995483,39.15,186.47,186.42,0.71]
[1753542995688,39.15,186.47,186.43,4.91218042]
[1753542996115,38.46,186.47,186.44,4.91218042]
[1753542996418,0.69,186.46,186.42,5.36405327]
[1753542996589,38.46,186.47,186.43,4.91218042]
[1753542996926,39.15,186.47,186.43,4.91218042]
[1753542997415,39.15,186.47,186.42,5.62218042]
[1753542997598,0.69,186.46,186.42,5.62218042]
[1753542997803,0.69,186.46,186.42,10.98632531]
[1753542998008,0.69,186.46,186.42,4.91218042]
[1753542998310,38.46,186.47,186.42,5.62218042]
[1753542998512,39.15,186.47,186.42,5.62218042]
[1753542998890,39.15,186.47,186.43,4.91218042]
[1753542998891,0.69,186.46,186.43,4.91218042]
[1753542999210,0.69,186.45,186.41,4.91218042]
[1753542999412,4.91218042,186.42,186.35,16.51171245]